fUST/lending_fUST_20260324
["ID","MTS","AMOUNT","RATE_DAILY","PERIOD"]
[408821169,1774302645559,-30302.65137607,0.0002446,2]
[408821170,1774302645570,-3795.1,0.0002446,2]
[408821171,1774302645583,-1283.82286199,0.0002446,2]
[408821172,1774302645595,-1316.27915126,0.0002446,2]
[408821173,1774302645607,-53227.40910726,0.0002446,2]
[408821174,1774302645617,-185118.28504538,0.0002446,2]
[408821175,1774302645631,-274.6353357,0.0002446,2]
[408821176,1774302645642,-318.84759742,0.0002446,2]
[408821177,1774302646056,-343970.68423076,0.0002446,2]
[408821178,1774302646066,-201.50183,0.0002446,2]
[408821179,1774302646075,-201.50183,0.0002446,2]
[408821180,1774302646084,-201.50183,0.0002446,2]
[408821181,1774302646093,-201.50183,0.0002446,2]
[408821182,1774302646103,-151.0,0.0002446,2]
[408821183,1774302646111,-172.537477,0.0002446,2]
[408821184,1774302646120,-172.537477,0.0002446,2]
[408821185,1774302646130,-172.537477,0.0002446,2]
[408821186,1774302646139,-172.537477,0.0002446,2]
[408821187,1774302646148,-334.411454,0.0002446,2]
[408821188,1774302646157,-334.411454,0.0002446,2]
[408821189,1774302646167,-334.411454,0.0002446,2]
[408821190,1774302646176,-334.411454,0.0002446,2]
[408821191,1774302646186,-838.830325,0.0002446,2]
[408821192,1774302646195,-838.830325,0.0002446,2]
[408821193,1774302646204,-838.830325,0.0002446,2]
[408821194,1774302646214,-176.793951,0.0002446,2]
[408821195,1774302646223,-151.0,0.0002446,2]
[408821196,1774302646232,-151.0,0.0002446,2]
[408821197,1774302646242,-267.864477,0.0002446,2]
[408821198,1774302646251,-838.830325,0.0002446,2]
[408821199,1774302646260,-267.864477,0.0002446,2]
[408821200,1774302646269,-151.0,0.0002446,2]
[408821201,1774302646278,-267.864477,0.0002446,2]
[408821202,1774302646288,-267.864477,0.0002446,2]
[408821203,1774302646298,-151.0,0.0002446,2]
[408821204,1774302646308,-151.0,0.0002446,2]
[408821205,1774302646319,-151.0,0.0002446,2]
[408821206,1774302646329,-151.0,0.0002446,2]
[408821207,1774302646338,-151.0,0.0002446,2]
[408821208,1774302646348,-161.370042,0.0002446,2]
[408821209,1774302646357,-151.0,0.0002446,2]
[408821210,1774302646366,-151.0,0.0002446,2]
[408821211,1774302646375,-246.811302,0.0002446,2]
[408821212,1774302646385,-246.811302,0.0002446,2]
[408821213,1774302646394,-196.548611,0.0002446,2]
[408821214,1774302646403,-246.811302,0.0002446,2]
[408821215,1774302646412,-196.548611,0.0002446,2]
[408821216,1774302646421,-246.811302,0.0002446,2]
[408821217,1774302646430,-196.548611,0.0002446,2]
[408821218,1774302646439,-246.811302,0.0002446,2]
[408821219,1774302646448,-196.548611,0.0002446,2]
[408821220,1774302646457,-246.811302,0.0002446,2]
[408821221,1774302646466,-196.548611,0.0002446,2]
[408821222,1774302646475,-246.811302,0.0002446,2]
[408821223,1774302646484,-196.548611,0.0002446,2]
[408821224,1774302646493,-246.811302,0.0002446,2]
[408821225,1774302646502,-196.548611,0.0002446,2]
[408821226,1774302646511,-960.021643,0.0002446,2]
[408821227,1774302646519,-196.548611,0.0002446,2]
[408821228,1774302646528,-960.021643,0.0002446,2]
[408821229,1774302646537,-960.021643,0.0002446,2]
[408821230,1774302646546,-960.021643,0.0002446,2]
[408821231,1774302646554,-960.021643,0.0002446,2]
[408821232,1774302646563,-960.021643,0.0002446,2]
[408821233,1774302646572,-960.021643,0.0002446,2]
[408821234,1774302646585,-960.021643,0.0002446,2]
[408821235,1774302646594,-367.505149,0.0002446,2]
[408821236,1774302646603,-367.505149,0.0002446,2]
[408821237,1774302646612,-367.505149,0.0002446,2]
[408821238,1774302646621,-367.505149,0.0002446,2]
[408821239,1774302646630,-367.505149,0.0002446,2]
[408821240,1774302646639,-367.505149,0.0002446,2]
[408821241,1774302646648,-367.505149,0.0002446,2]
[408821242,1774302646657,-498.1826,0.0002446,2]
[408821243,1774302646666,-367.505149,0.0002446,2]
[408821244,1774302646675,-498.1826,0.0002446,2]
[408821245,1774302646685,-498.1826,0.0002446,2]
[408821246,1774302646698,-498.1826,0.0002446,2]
[408821247,1774302646711,-498.1826,0.0002446,2]
[408821248,1774302646721,-498.1826,0.0002446,2]
[408821249,1774302646730,-498.1826,0.0002446,2]
[408821250,1774302646740,-498.1826,0.0002446,2]
[408821251,1774302646749,-285.270896,0.0002446,2]
[408821252,1774302646759,-966.324788,0.0002446,2]
[408821253,1774302646768,-966.324788,0.0002446,2]
[408821254,1774302646778,-966.324788,0.0002446,2]
[408821255,1774302646787,-966.324788,0.0002446,2]
[408821256,1774302646796,-966.324788,0.0002446,2]
[408821257,1774302646806,-966.324788,0.0002446,2]
[408821258,1774302646815,-966.324788,0.0002446,2]
[408821259,1774302646824,-966.324788,0.0002446,2]
[408821260,1774302646833,-151.0,0.0002446,2]
[408821261,1774302646841,-151.0,0.0002446,2]
[408821262,1774302646850,-151.0,0.0002446,2]
[408821263,1774302646859,-151.0,0.0002446,2]
[408821264,1774302646869,-151.0,0.0002446,2]
[408821265,1774302646878,-151.0,0.0002446,2]
[408821266,1774302646887,-163.225245,0.0002446,2]
[408821267,1774302646896,-1580.711373,0.0002446,2]
[408821268,1774302646905,-1580.711373,0.0002446,2]
[408821269,1774302646914,-1580.711373,0.0002446,2]
[408821270,1774302646923,-1580.711373,0.0002446,2]
[408821271,1774302646932,-733.15,0.0002446,2]
[408821272,1774302646941,-733.15,0.0002446,2]
[408821273,1774302646951,-733.15,0.0002446,2]
[408821274,1774302646960,-733.15,0.0002446,2]
[408821275,1774302646969,-733.15,0.0002446,2]
[408821276,1774302646979,-733.15,0.0002446,2]
[408821277,1774302646988,-733.15,0.0002446,2]
[408821278,1774302646997,-733.15,0.0002446,2]
[408821279,1774302647006,-733.15,0.0002446,2]
[408821280,1774302647014,-733.15,0.0002446,2]
[408821281,1774302647024,-733.15,0.0002446,2]
[408821282,1774302647033,-733.15,0.0002446,2]
[408821283,1774302647042,-1056.03,0.0002446,2]
[408821284,1774302647051,-512.68,0.00024475,2]
[408821285,1774302647061,-499.82,0.00024476,2]
[408821286,1774302647072,-512.6834,0.00024477,2]
[408821287,1774302647081,-512.6834,0.00024478,2]
[408821288,1774302647089,-151.0,0.00024478,2]
[408821289,1774302647098,-151.0,0.00024478,2]
[408821290,1774302647107,-267.864477,0.00024478,2]
[408821291,1774302647116,-267.864477,0.00024478,2]
[408821292,1774302647125,-151.0,0.00024478,2]
[408821293,1774302647133,-267.864477,0.00024478,2]
[408821294,1774302647142,-267.864477,0.00024478,2]
[408821295,1774302647151,-151.0,0.00024478,2]
[408821296,1774302647160,-151.0,0.00024478,2]
[408821297,1774302647169,-151.0,0.00024478,2]
[408821298,1774302647178,-151.0,0.00024478,2]
[408821299,1774302647187,-151.07683,0.00024478,2]
[408821300,1774302647196,-966.324788,0.00024478,2]
[408821301,1774302647205,-966.324788,0.00024478,2]
[408821302,1774302647215,-966.324788,0.00024478,2]
[408821303,1774302647224,-966.324781,0.00024478,2]
[408821304,1774302647233,-151.0,0.00024478,2]
[408821305,1774302647242,-151.0,0.00024478,2]
[408821306,1774302647251,-151.0,0.00024478,2]
[408821307,1774302647260,-1580.711373,0.00024478,2]
[408821308,1774302647269,-512.6834,0.00024479,2]
[408821309,1774302647278,-200.0,0.00024479,2]
[408821310,1774302647287,-151.0,0.000245,10]
[408821311,1774302647296,-151.0,0.000245,5]
[408821312,1774302647305,-151.0,0.000245,8]
[408821313,1774302647314,-150.0,0.00024507,2]
[408821314,1774302647323,-438.0,0.00024507,2]
[408821315,1774302647332,-151.0,0.000246,10]
[408821316,1774302647341,-151.0,0.000246,8]
[408821317,1774302647351,-151.0,0.000246,9]
[408821318,1774302647360,-160.0,0.00024658,2]
[408821319,1774302647369,-160.0,0.00024658,2]
[408821320,1774302647378,-160.0,0.00024658,2]
[408821321,1774302647387,-160.0,0.00024658,2]
[408821322,1774302647396,-208.23236222,0.00024658,2]
[408821323,1774302647405,-380.0,0.00024658,2]
[408821324,1774302647414,-500.0,0.00024658,2]
[408821325,1774302647423,-500.0,0.00024658,2]
[408821326,1774302647432,-500.0,0.00024658,2]
[408821327,1774302647441,-500.0,0.00024658,2]
[408821328,1774302647450,-500.0,0.00024658,2]
[408821329,1774302647459,-500.0,0.00024658,2]
[408821330,1774302647467,-151.0,0.000247,7]
[408821331,1774302647476,-151.0,0.000247,2]
[408821332,1774302647485,-246.811302,0.000247,2]
[408821333,1774302647494,-196.548611,0.000247,2]
[408821334,1774302647503,-246.811302,0.000247,2]
[408821335,1774302647511,-196.548611,0.000247,2]
[408821336,1774302647521,-246.811302,0.000247,2]
[408821337,1774302647530,-196.548611,0.000247,2]
[408821338,1774302647539,-246.811302,0.000247,2]
[408821339,1774302647548,-196.548611,0.000247,2]
[408821340,1774302647557,-960.021643,0.000247,2]
[408821341,1774302647566,-960.021643,0.000247,2]
[408821342,1774302647576,-960.021643,0.000247,2]
[408821343,1774302647584,-960.021643,0.000247,2]
[408821344,1774302647593,-367.505149,0.000247,2]
[408821345,1774302647602,-367.505149,0.000247,2]
[408821346,1774302647611,-367.505149,0.000247,2]
[408821347,1774302647620,-367.505149,0.000247,2]
[408821348,1774302647630,-498.1826,0.000247,2]
[408821349,1774302647639,-498.1826,0.000247,2]
[408821350,1774302647648,-498.1826,0.000247,2]
[408821351,1774302647657,-498.1826,0.000247,2]
[408821352,1774302647666,-500.0,0.00024706,2]
[408821353,1774302647675,-500.0,0.00024733,2]
[408821354,1774302647684,-1000.0,0.00024733,2]
[408821355,1774302647693,-487.51343665,0.000248,74]
[408821356,1774302647707,-1111.5017915,0.000248,74]
[408821357,1774302647716,-1960.90163099,0.000248,74]
[408821358,1774302647725,-1541.88779737,0.000248,74]
[408821359,1774302647734,-1735.49014635,0.000248,74]
[408821360,1774302647745,-2359.47850119,0.000248,74]
[408821361,1774302647754,-201.50183,0.000248,2]
[408821362,1774302647763,-201.50183,0.000248,2]
[408821363,1774302647774,-201.50183,0.000248,2]
[408821364,1774302647783,-201.50183,0.000248,2]
[408821365,1774302647792,-181.879932,0.000248,2]
[408821366,1774302647801,-172.537477,0.000248,2]
[408821367,1774302647810,-172.537477,0.000248,2]
[408821368,1774302647819,-172.537477,0.000248,2]
[408821369,1774302647828,-172.537477,0.000248,2]
[408821370,1774302647837,-334.411454,0.000248,2]
[408821371,1774302647846,-334.411454,0.000248,2]
[408821372,1774302647855,-334.411454,0.000248,2]
[408821373,1774302647864,-334.411454,0.000248,2]
[408821374,1774302647874,-838.830325,0.000248,2]
[408821375,1774302647883,-838.830325,0.000248,2]
[408821376,1774302647892,-838.830325,0.000248,2]
[408821377,1774302647901,-151.0,0.000248,2]
[408821378,1774302647910,-151.0,0.000248,2]
[408821379,1774302647919,-838.830325,0.000248,2]
[408821380,1774302647927,-267.864477,0.000248,2]
[408821381,1774302647937,-267.864477,0.000248,2]
[408821382,1774302647946,-151.0,0.000248,2]
[408821383,1774302647955,-267.864477,0.000248,2]
[408821384,1774302647964,-267.864477,0.000248,2]
[408821385,1774302647973,-222.6804,0.000248,2]
[408821386,1774302647982,-151.0,0.000248,2]
[408821387,1774302647992,-151.0,0.000248,2]
[408821388,1774302648001,-288.827087,0.000248,2]
[408821389,1774302648010,-233.641374,0.000248,2]
[408821390,1774302648019,-246.811302,0.000248,2]
[408821391,1774302648028,-196.548611,0.000248,2]
[408821392,1774302648037,-246.811302,0.000248,2]
[408821393,1774302648047,-196.548611,0.000248,2]
[408821394,1774302648056,-246.811302,0.000248,2]
[408821395,1774302648065,-196.548611,0.000248,2]
[408821396,1774302648074,-246.81129588,0.000248,2]
[408821397,1774302648083,-196.548605,0.000248,2]
[408821398,1774302648093,-960.021643,0.000248,2]
[408821399,1774302648102,-960.021643,0.000248,2]
[408821400,1774302648111,-960.021643,0.000248,2]
[408821401,1774302648120,-960.02164,0.000248,2]
[408821402,1774302648129,-367.505149,0.000248,2]
[408821403,1774302648138,-367.505149,0.000248,2]
[408821404,1774302648148,-367.505149,0.000248,2]
[408821405,1774302648157,-367.505153,0.000248,2]
[408821406,1774302648167,-498.1826,0.000248,2]
[408821407,1774302648176,-498.1826,0.000248,2]
[408821408,1774302648186,-498.1826,0.000248,2]
[408821409,1774302648195,-498.182598,0.000248,2]
[408821410,1774302648205,-1000.0,0.00024805,2]
[408821411,1774302648214,-334.36921802,0.00024805,2]
[408821412,1774302648223,-151.0,0.00024807,2]
[408821413,1774302648232,-151.0,0.00024807,2]
[408821414,1774302648241,-151.0,0.00024807,2]
[408821415,1774302648250,-204.684368,0.00024807,2]
[408821416,1774302648259,-151.0,0.00024807,2]
[408821417,1774302648268,-151.0,0.00024807,2]
[408821418,1774302648277,-190.431074,0.00024807,2]
[408821419,1774302648286,-169.301551,0.00024807,2]
[408821420,1774302648295,-169.301551,0.00024807,2]
[408821421,1774302648304,-169.301551,0.00024807,2]
[408821422,1774302648313,-169.301551,0.00024807,2]
[408821423,1774302648322,-169.301551,0.00024807,2]
[408821424,1774302648331,-169.301551,0.00024807,2]
[408821425,1774302648340,-169.301551,0.00024807,2]
[408821426,1774302648348,-169.301551,0.00024807,2]
[408821427,1774302648357,-169.301551,0.00024807,2]
[408821428,1774302648366,-169.301551,0.00024807,2]
[408821429,1774302648375,-169.301551,0.00024807,2]
[408821430,1774302648385,-169.301551,0.00024807,2]
[408821431,1774302648394,-151.0,0.00024807,2]
[408821432,1774302648403,-151.0,0.00024807,2]
[408821433,1774302648412,-151.0,0.00024807,2]
[408821434,1774302648421,-151.0,0.00024807,2]
[408821435,1774302648430,-151.0,0.00024807,2]
[408821436,1774302648440,-151.0,0.00024807,2]
[408821437,1774302648449,-611.693164,0.00024807,2]
[408821438,1774302648458,-611.693164,0.00024807,2]
[408821439,1774302648468,-611.693164,0.00024807,2]
[408821440,1774302648477,-611.693164,0.00024807,2]
[408821441,1774302648487,-611.693164,0.00024807,2]
[408821442,1774302648496,-611.693164,0.00024807,2]
[408821443,1774302648505,-611.693164,0.00024807,2]
[408821444,1774302648514,-611.693164,0.00024807,2]
[408821445,1774302648523,-611.693164,0.00024807,2]
[408821446,1774302648532,-611.693164,0.00024807,2]
[408821447,1774302648541,-611.693164,0.00024807,2]
[408821448,1774302648550,-611.693164,0.00024807,2]
[408821449,1774302648559,-151.0,0.00024807,2]
[408821450,1774302648569,-151.0,0.00024807,2]
[408821451,1774302648579,-151.0,0.00024807,2]
[408821452,1774302648588,-184.944862,0.00024807,2]
[408821453,1774302648600,-184.944862,0.00024807,2]
[408821454,1774302648609,-184.944862,0.00024807,2]
[408821455,1774302648757,-184.944862,0.00024807,2]
[408821456,1774302648766,-184.944862,0.00024807,2]
[408821457,1774302648775,-184.944862,0.00024807,2]
[408821458,1774302648784,-184.944862,0.00024807,2]
[408821459,1774302648793,-184.944862,0.00024807,2]
[408821460,1774302648802,-184.944862,0.00024807,2]
[408821461,1774302648812,-184.944862,0.00024807,2]
[408821462,1774302648821,-184.944862,0.00024807,2]
[408821463,1774302648830,-184.944862,0.00024807,2]
[408821464,1774302648839,-2766.667189,0.00024807,2]
[408821465,1774302648848,-2766.667189,0.00024807,2]
[408821466,1774302648858,-2766.667189,0.00024807,2]
[408821467,1774302648867,-2766.667189,0.00024807,2]
[408821468,1774302648876,-2766.667189,0.00024807,2]
[408821469,1774302648884,-2766.667189,0.00024807,2]
[408821470,1774302648893,-2766.667189,0.00024807,2]
[408821471,1774302648904,-2766.667189,0.00024807,2]
[408821472,1774302648913,-2766.667189,0.00024807,2]
[408821473,1774302648922,-151.0,0.00024807,2]
[408821474,1774302648932,-2766.667189,0.00024807,2]
[408821475,1774302648942,-151.0,0.00024807,2]
[408821476,1774302648951,-2766.667189,0.00024807,2]
[408821477,1774302648960,-151.0,0.00024807,2]
[408821478,1774302648969,-2766.667189,0.00024807,2]
[408821479,1774302648979,-2856.208797,0.00024807,2]
[408821480,1774302648988,-2856.208797,0.00024807,2]
[408821481,1774302648997,-2856.208797,0.00024807,2]
[408821482,1774302649007,-2856.208797,0.00024807,2]
[408821483,1774302649016,-2856.208797,0.00024807,2]
[408821484,1774302649025,-2856.208797,0.00024807,2]
[408821485,1774302649034,-2856.208797,0.00024807,2]
[408821486,1774302649044,-2856.208797,0.00024807,2]
[408821487,1774302649052,-2856.208797,0.00024807,2]
[408821488,1774302649061,-2856.208797,0.00024807,2]
[408821489,1774302649071,-2856.208797,0.00024807,2]
[408821490,1774302649080,-2856.208797,0.00024807,2]
[408821491,1774302649090,-201.50183,0.00024807,2]
[408821492,1774302649099,-201.50183,0.00024807,2]
[408821493,1774302649108,-201.50183,0.00024807,2]
[408821494,1774302649117,-201.50183,0.00024807,2]
[408821495,1774302649126,-201.50183,0.00024807,2]
[408821496,1774302649135,-201.50183,0.00024807,2]
[408821497,1774302649145,-201.50183,0.00024807,2]
[408821498,1774302649154,-201.50183,0.00024807,2]
[408821499,1774302649163,-201.50183,0.00024807,2]
[408821500,1774302649172,-201.50183,0.00024807,2]
[408821501,1774302649181,-201.50183,0.00024807,2]
[408821502,1774302649191,-201.501839,0.00024807,2]
[408821503,1774302649200,-172.537477,0.00024807,2]
[408821504,1774302649209,-172.537477,0.00024807,2]
[408821505,1774302649219,-172.537477,0.00024807,2]
[408821506,1774302649229,-172.537477,0.00024807,2]
[408821507,1774302649238,-172.537477,0.00024807,2]
[408821508,1774302649247,-172.537477,0.00024807,2]
[408821509,1774302649257,-172.537477,0.00024807,2]
[408821510,1774302649267,-172.537477,0.00024807,2]
[408821511,1774302649276,-172.537477,0.00024807,2]
[408821512,1774302649286,-172.537477,0.00024807,2]
[408821513,1774302649298,-172.537477,0.00024807,2]
[408821514,1774302649308,-172.537477,0.00024807,2]
[408821515,1774302649317,-334.411454,0.00024807,2]
[408821516,1774302649326,-334.411454,0.00024807,2]
[408821517,1774302649335,-334.411454,0.00024807,2]
[408821518,1774302649345,-334.411454,0.00024807,2]
[408821519,1774302649354,-334.411454,0.00024807,2]
[408821520,1774302649364,-334.411454,0.00024807,2]
[408821521,1774302649374,-334.411454,0.00024807,2]
[408821522,1774302649388,-334.411454,0.00024807,2]
[408821523,1774302649398,-334.411454,0.00024807,2]
[408821524,1774302649407,-334.411454,0.00024807,2]
[408821525,1774302649416,-334.411454,0.00024807,2]
[408821526,1774302649426,-334.411452,0.00024807,2]
[408821527,1774302649435,-838.830325,0.00024807,2]
[408821528,1774302649444,-838.830325,0.00024807,2]
[408821529,1774302649454,-838.830325,0.00024807,2]
[408821530,1774302649463,-838.830325,0.00024807,2]
[408821531,1774302649472,-838.830325,0.00024807,2]
[408821532,1774302649481,-838.830325,0.00024807,2]
[408821533,1774302649491,-838.830325,0.00024807,2]
[408821534,1774302649501,-838.830325,0.00024807,2]
[408821535,1774302649510,-151.0,0.00024807,2]
[408821536,1774302649519,-151.0,0.00024807,2]
[408821537,1774302649529,-838.830325,0.00024807,2]
[408821538,1774302649538,-288.309321,0.00024807,2]
[408821539,1774302649548,-838.830325,0.00024807,2]
[408821540,1774302649558,-838.830325,0.00024807,2]
[408821541,1774302649567,-267.864477,0.00024807,2]
[408821542,1774302649577,-838.830331,0.00024807,2]
[408821543,1774302649586,-267.864477,0.00024807,2]
[408821544,1774302649595,-267.864477,0.00024807,2]
[408821545,1774302649604,-267.864477,0.00024807,2]
[408821546,1774302649613,-151.0,0.00024807,2]
[408821547,1774302649622,-267.864477,0.00024807,2]
[408821548,1774302649631,-152.633807,0.00024807,2]
[408821549,1774302649640,-267.864477,0.00024807,2]
[408821550,1774302649649,-267.864477,0.00024807,2]
[408821551,1774302649658,-267.864479,0.00024807,2]
[408821552,1774302649667,-151.0,0.00024807,2]
[408821553,1774302649676,-151.0,0.00024807,2]
[408821554,1774302649685,-151.0,0.00024807,2]
[408821555,1774302649694,-151.0,0.00024807,2]
[408821556,1774302649708,-180.07917065,0.00024807,2]
[408821557,1774302649717,-500.0,0.00024873,2]
[408821558,1774302649726,-500.0,0.00024873,2]
[408821559,1774302649737,-500.0,0.00024873,2]
[408821560,1774302649746,-500.0,0.00024873,2]
[408821561,1774302649755,-500.0,0.00024873,2]
[408821562,1774302649765,-500.0,0.00024873,2]
[408821563,1774302649778,-500.0,0.00024873,2]
[408821564,1774302649787,-151.0,0.00024898,2]
[408821565,1774302649796,-151.0,0.00024898,2]
[408821566,1774302649805,-151.0,0.00024898,2]
[408821567,1774302649814,-151.0,0.00024898,2]
[408821568,1774302649823,-151.0,0.00024898,2]
[408821569,1774302649832,-169.301551,0.00024898,2]
[408821570,1774302649843,-169.301551,0.00024898,2]
[408821571,1774302649853,-169.301551,0.00024898,2]
[408821572,1774302649862,-169.301551,0.00024898,2]
[408821573,1774302649872,-169.301551,0.00024898,2]
[408821574,1774302649881,-169.301551,0.00024898,2]
[408821575,1774302649890,-169.301551,0.00024898,2]
[408821576,1774302649899,-169.301556,0.00024898,2]
[408821577,1774302649908,-151.0,0.00024898,2]
[408821578,1774302649917,-151.0,0.00024898,2]
[408821579,1774302649927,-151.0,0.00024898,2]
[408821580,1774302649937,-287.845212,0.00024898,2]
[408821581,1774302649947,-611.693164,0.00024898,2]
[408821582,1774302649956,-611.693164,0.00024898,2]
[408821583,1774302649966,-611.693164,0.00024898,2]
[408821584,1774302649975,-611.693164,0.00024898,2]
[408821585,1774302649985,-611.693164,0.00024898,2]
[408821586,1774302649995,-611.693164,0.00024898,2]
[408821587,1774302650005,-611.693164,0.00024898,2]
[408821588,1774302650014,-611.693168,0.00024898,2]
[408821589,1774302650023,-151.655218,0.00024898,2]
[408821590,1774302650034,-184.944862,0.00024898,2]
[408821591,1774302650043,-184.944862,0.00024898,2]
[408821592,1774302650053,-184.944862,0.00024898,2]
[408821593,1774302650062,-184.944862,0.00024898,2]
[408821594,1774302650071,-184.944862,0.00024898,2]
[408821595,1774302650081,-184.944862,0.00024898,2]
[408821596,1774302650090,-184.944862,0.00024898,2]
[408821597,1774302650100,-184.944862,0.00024898,2]
[408821598,1774302650109,-2766.667189,0.00024898,2]
[408821599,1774302650118,-2766.667189,0.00024898,2]
[408821600,1774302650127,-2766.667189,0.00024898,2]
[408821601,1774302650136,-2766.667189,0.00024898,2]
[408821602,1774302650146,-2766.667189,0.00024898,2]
[408821603,1774302650155,-2766.667189,0.00024898,2]
[408821604,1774302650164,-2766.667189,0.00024898,2]
[408821605,1774302650173,-153.931231,0.00024898,2]
[408821606,1774302650182,-2766.667186,0.00024898,2]
[408821607,1774302650190,-2856.208797,0.00024898,2]
[408821608,1774302650199,-2856.208797,0.00024898,2]
[408821609,1774302650209,-2856.208797,0.00024898,2]
[408821610,1774302650218,-2856.208797,0.00024898,2]
[408821611,1774302650227,-2856.208797,0.00024898,2]
[408821612,1774302650237,-2856.208797,0.00024898,2]
[408821613,1774302650247,-2856.208797,0.00024898,2]
[408821614,1774302650256,-2856.20879,0.00024898,2]
[408821615,1774302650265,-151.0,0.00024899,2]
[408821616,1774302650275,-151.0,0.00024899,2]
[408821617,1774302650285,-151.0,0.00024899,2]
[408821618,1774302650294,-151.0,0.00024899,2]
[408821619,1774302650304,-151.0,0.00024899,2]
[408821620,1774302650313,-273.76481234,0.000249,63]
[408821621,1774302650323,-545.36987914,0.000249,63]
[408821622,1774302650332,-474.92612618,0.000249,63]
[408821623,1774302650342,-518.92335527,0.000249,63]
[408821624,1774302650351,-151.0,0.000249,2]
[408821625,1774302650360,-151.0,0.000249,2]
[408821626,1774302650369,-151.0,0.000249,2]
[408821627,1774302650378,-250.0,0.000249,2]
[408821628,1774302650387,-250.0,0.000249,2]
[408821629,1774302650396,-250.0,0.000249,2]
[408821630,1774302650405,-250.0,0.000249,2]
[408821631,1774302650414,-250.0,0.000249,2]
[408821632,1774302650423,-250.0,0.000249,2]
[408821633,1774302650433,-250.0,0.000249,2]
[408821634,1774302650442,-250.0,0.000249,2]
[408821635,1774302650450,-241.9,0.000249,2]
[408821636,1774302650459,-616057.266456,0.000249,2]
[408821637,1774302650468,-189.18159756,0.00024914,3]
[408821638,1774302650478,-517.0,0.0002492,10]
[408821639,1774302650487,-6158.0,0.0002492,10]
[408821640,1774302650496,-500.0,0.0002498,2]
[408821641,1774302650507,-179.9640072,0.00024992,2]
[408821642,1774302650516,-794.8522133,0.00025,2]
[408821643,1774302650525,-2733.54172059,0.00025,7]
[408821644,1774302650535,-2593.42928901,0.00025001,2]
[408821645,1774302650545,-500.0,0.00025007,2]
[408821646,1774302650554,-1000.0,0.00025007,2]
[408821647,1774302650563,-512.6834,0.00025025,3]
[408821648,1774302650572,-512.6834,0.00025026,3]
[408821649,1774302650581,-512.6834,0.00025027,3]
[408821650,1774302650590,-1000.0,0.00025079,2]
[408821651,1774302650599,-151.0,0.00025079,2]
[408821652,1774302650609,-151.0,0.00025079,2]
[408821653,1774302650618,-500.0,0.00025153,9]
[408821654,1774302650627,-788.0,0.000252,2]
[408821655,1774302650637,-500.0,0.00025253,2]
[408821656,1774302650646,-500.0,0.00025281,2]
[408821657,1774302650654,-1000.0,0.00025281,2]
[408821658,1774302650664,-794.8522133,0.000253,2]
[408821659,1774302650673,-1000.0,0.00025353,2]
[408821660,1774302650682,-495.18091764,0.00025421,2]
[408821661,1774302650691,-1000.0,0.00025421,2]
[408821662,1774302650702,-1000.0,0.00025421,2]
[408821663,1774302650711,-1000.0,0.00025421,2]
[408821664,1774302650720,-500.0,0.00025421,2]
[408821665,1774302650729,-2432071.8045,0.00025444,2]
[408821666,1774302650738,-151.0,0.00025444,2]
[408821667,1774302650749,-151.0,0.00025444,2]
[408821668,1774302650758,-197.307721,0.00025444,2]